fUSD/lending_fUSD_20240212
["ID","MTS","AMOUNT","RATE_DAILY","PERIOD"]
[313834207,1707748281637,-500.0,0.00024766,2]
[313834208,1707748281647,-500.0,0.00024766,2]
[313834209,1707748281657,-500.0,0.00024766,2]
[313834210,1707748281667,-1134.83,0.00024766,2]
[313834211,1707748281677,-1147.71,0.00024766,2]
[313834212,1707748281686,-500.0,0.00024766,2]
[313834213,1707748281695,-500.0,0.00024766,2]
[313834214,1707748281704,-2142.38,0.00024766,2]
[313834215,1707748281713,-1578.9,0.00024766,2]
[313834216,1707748281723,-500.0,0.00024766,2]
[313834217,1707748281732,-500.0,0.00024766,2]
[313834218,1707748281742,-628.61,0.00024766,2]
[313834219,1707748281751,-1527.65,0.00024766,2]
[313834220,1707748281760,-1715.49,0.00024766,2]
[313834221,1707748281770,-500.0,0.00024766,2]
[313834222,1707748281779,-1537.51,0.00024766,2]
[313834223,1707748281789,-500.0,0.00024766,2]
[313834224,1707748281799,-500.0,0.00024766,2]
[313834225,1707748281808,-1757.6,0.00024766,2]
[313834226,1707748281817,-2089.11,0.00024766,2]
[313834227,1707748281826,-1017.68,0.00024766,2]
[313834228,1707748281835,-345.4,0.00024766,2]
[313834229,1707748281844,-1161.37,0.00024766,2]
[313834230,1707748281853,-590.03,0.00024766,2]
[313834231,1707748281862,-10286.15,0.00024766,2]
[313834232,1707748281871,-218.2,0.00024766,2]
[313834233,1707748281881,-500.0,0.00024766,2]
[313834234,1707748281890,-1897.21,0.00024766,2]
[313834235,1707748281900,-500.0,0.00024766,2]
[313834236,1707748281909,-935.54,0.00024766,2]
[313834237,1707748281918,-500.0,0.00024766,2]
[313834238,1707748281928,-7934.79,0.00024766,2]
[313834239,1707748281938,-500.0,0.00024766,2]
[313834240,1707748281949,-500.0,0.00024766,2]
[313834241,1707748281958,-500.0,0.00024766,2]
[313834242,1707748281968,-500.0,0.00024766,2]
[313834243,1707748281977,-500.0,0.00024766,2]
[313834244,1707748281987,-500.0,0.00024766,2]
[313834245,1707748281996,-2190.55,0.00024766,2]
[313834246,1707748282006,-500.0,0.00024766,2]
[313834247,1707748282016,-1376.25,0.00024766,2]
[313834248,1707748282025,-500.0,0.00024766,2]
[313834249,1707748282035,-6405.5,0.00024766,2]
[313834250,1707748282045,-500.0,0.00024766,2]
[313834251,1707748282055,-500.0,0.00024766,2]
[313834252,1707748282065,-4161.56,0.00024766,2]
[313834253,1707748282075,-692.19,0.00024766,2]
[313834254,1707748282084,-562.21,0.00024766,2]
[313834255,1707748282093,-42470.5798594,0.00024799,2]
[313834256,1707748282103,-42470.57985931,0.00024799,2]
[313834257,1707748282112,-42470.57985931,0.00024799,2]
[313834258,1707748282121,-42470.57985931,0.00024799,2]
[313834259,1707748282130,-42470.57985931,0.00024799,2]
[313834260,1707748282140,-500.0,0.00024823,2]
[313834261,1707748282149,-5812.6876084,0.00024835,2]
[313834262,1707748282159,-504.04647222,0.00024847,2]
[313834263,1707748282168,-283.18575508,0.00024847,2]
[313834264,1707748282177,-500.0,0.00024847,2]
[313834265,1707748282186,-1262.54,0.00024847,2]
[313834266,1707748282195,-1207.47,0.00024847,2]
[313834267,1707748282205,-500.0,0.00024847,2]
[313834268,1707748282214,-500.0,0.00024847,2]
[313834269,1707748282223,-473.42605726,0.00024847,2]
[313834270,1707748282233,-581.28,0.00024847,2]
[313834271,1707748282242,-500.0,0.00024847,2]
[313834272,1707748282252,-500.0,0.00024847,2]
[313834273,1707748282262,-500.0,0.00024847,2]
[313834274,1707748282271,-500.0,0.00024847,2]
[313834275,1707748282280,-456.7689798,0.00024847,2]
[313834276,1707748282289,-500.0,0.00024847,2]
[313834277,1707748282298,-211.57933511,0.00024847,2]
[313834278,1707748282312,-500.0,0.00024847,2]
[313834279,1707748282320,-567.05072448,0.00024847,2]
[313834280,1707748282329,-500.0,0.00024847,2]
[313834281,1707748282338,-500.0,0.00024847,2]
[313834282,1707748282346,-500.0,0.00024847,2]
[313834283,1707748282356,-500.0,0.00024847,2]
[313834284,1707748282365,-662.95,0.00024847,2]
[313834285,1707748282373,-500.0,0.00024847,2]
[313834286,1707748282384,-500.0,0.00024847,2]
[313834287,1707748282393,-500.0,0.00024847,2]
[313834288,1707748282402,-500.0,0.00024847,2]
[313834289,1707748282411,-350.70865852,0.00024847,2]
[313834290,1707748282420,-500.0,0.00024847,2]
[313834291,1707748282429,-284.38,0.00024847,2]
[313834292,1707748282439,-500.0,0.00024847,2]
[313834293,1707748282448,-500.0,0.00024847,2]
[313834294,1707748282458,-500.0,0.00024847,2]
[313834295,1707748282467,-785.31,0.00024847,2]
[313834296,1707748282476,-500.0,0.00024847,2]
[313834297,1707748282486,-500.0,0.00024847,2]
[313834298,1707748282495,-1057.6,0.00024847,2]
[313834299,1707748282505,-500.0,0.00024847,2]
[313834300,1707748282515,-623.82,0.00024847,2]
[313834301,1707748282525,-500.0,0.00024847,2]
[313834302,1707748282534,-500.0,0.00024847,2]
[313834303,1707748282544,-500.0,0.00024847,2]
[313834304,1707748282554,-681.61,0.00024847,2]
[313834305,1707748282564,-240.69928124,0.00024847,2]
[313834306,1707748282573,-500.0,0.00024847,2]
[313834307,1707748282582,-1004.0,0.00024847,2]
[313834308,1707748282592,-500.0,0.00024847,2]
[313834309,1707748282602,-500.0,0.00024847,2]
[313834310,1707748282612,-500.0,0.00024847,2]
[313834311,1707748282621,-500.0,0.00024847,2]
[313834312,1707748282631,-504.08500606,0.00024847,2]
[313834313,1707748282640,-500.0,0.00024853,2]
[313834314,1707748282651,-500.0,0.00024854,2]
[313834315,1707748282661,-500.0,0.00024938,2]
[313834316,1707748282671,-500.0,0.00024938,2]
[313834317,1707748282680,-500.0,0.00024938,2]
[313834318,1707748282689,-1366.1,0.00024938,2]
[313834319,1707748282699,-500.0,0.00024938,2]
[313834320,1707748282708,-485.14695528,0.00024938,2]
[313834321,1707748282718,-2110.37,0.00024954,2]
[313834322,1707748282727,-217.48142508,0.00024954,2]
[313834323,1707748282735,-6142.49,0.00024954,2]
[313834324,1707748282744,-500.0,0.00024954,2]
[313834325,1707748282754,-676.37,0.00024954,2]
[313834326,1707748282762,-1791.31,0.00024954,2]
[313834327,1707748282771,-564.38,0.00024954,2]
[313834328,1707748282780,-2125.32,0.00024954,2]
[313834329,1707748282790,-500.0,0.00024954,2]
[313834330,1707748282799,-746.12,0.00024954,2]
[313834331,1707748282808,-6506.4,0.00024954,2]
[313834332,1707748282818,-746.22,0.00024954,2]
[313834333,1707748282827,-500.0,0.00024954,2]
[313834334,1707748282837,-500.0,0.00024954,2]
[313834335,1707748282847,-500.0,0.00024954,2]
[313834336,1707748282857,-500.0,0.00024954,2]
[313834337,1707748282867,-1926.94,0.00024954,2]
[313834338,1707748282877,-500.0,0.00024954,2]
[313834339,1707748282887,-1829.63,0.00024954,2]
[313834340,1707748282897,-339.54712316,0.00024954,2]
[313834341,1707748282907,-504.23,0.00024954,2]
[313834342,1707748282917,-2230.81,0.00024954,2]
[313834343,1707748282927,-500.0,0.00024954,2]
[313834344,1707748282937,-500.0,0.00024954,2]
[313834345,1707748282946,-5597.11,0.00024954,2]
[313834346,1707748282956,-2899.6,0.00024954,2]
[313834347,1707748282965,-500.0,0.00024954,2]
[313834348,1707748282975,-828.89,0.00024954,2]
[313834349,1707748282985,-946.31124793,0.00025,2]
[313834350,1707748282995,-1909.75102483,0.00025,2]
[313834351,1707748283004,-1592.09246113,0.00025,2]
[313834352,1707748283013,-1256.25370781,0.00025,2]
[313834353,1707748283023,-168.26749515,0.00025,2]
[313834354,1707748283032,-159.89262524,0.00025,2]
[313834355,1707748283043,-750.0,0.00025,3]
[313834356,1707748283054,-200.0,0.00025,2]
[313834357,1707748283063,-3000.0,0.00025,2]
[313834358,1707748283072,-200.0,0.00025,2]
[313834359,1707748283082,-150.0,0.00025,2]
[313834360,1707748283091,-200.0,0.00025,2]
[313834361,1707748283101,-622.49852888,0.00025,2]
[313834362,1707748283110,-500.0,0.00025005,2]
[313834363,1707748283119,-3000.0,0.0002501,2]
[313834364,1707748283129,-225.79,0.00025011,2]
[313834365,1707748283138,-1000.0,0.00025013,3]
[313834366,1707748283147,-1000.0,0.00025013,3]
[313834367,1707748283157,-1000.0,0.00025013,3]
[313834368,1707748283167,-1000.0,0.00025013,3]
[313834369,1707748283176,-50000.0,0.00025013,2]
[313834370,1707748283186,-1000.0,0.00025015,3]
[313834371,1707748283196,-1000.0,0.00025015,3]
[313834372,1707748283206,-1000.0,0.00025015,3]
[313834373,1707748283216,-50000.0,0.00025015,2]
[313834374,1707748283225,-1000.0,0.00025015,3]
[313834375,1707748283235,-1000.0,0.00025015,3]
[313834376,1707748283246,-1000.0,0.00025015,3]
[313834377,1707748283256,-3000.0,0.0002502,2]
[313834378,1707748283266,-3000.0,0.0002503,2]
[313834379,1707748283275,-2611.65,0.00025036,2]
[313834380,1707748283285,-1871.51,0.00025036,2]
[313834381,1707748283294,-15228.44,0.00025036,2]
[313834382,1707748283307,-500.0,0.00025036,2]
[313834383,1707748283317,-1123.04,0.00025036,2]
[313834384,1707748283326,-669.38,0.00025036,2]
[313834385,1707748283335,-500.0,0.00025036,2]
[313834386,1707748283346,-7454.03,0.00025036,2]
[313834387,1707748283356,-656.99,0.00025036,2]
[313834388,1707748283367,-1132.61,0.00025036,2]
[313834389,1707748283377,-500.0,0.00025036,2]
[313834390,1707748283388,-607.87,0.00025036,2]
[313834391,1707748283398,-2975.67,0.00025036,2]
[313834392,1707748283408,-1380.57,0.00025036,2]
[313834393,1707748283419,-1785.04,0.00025036,2]
[313834394,1707748283429,-500.0,0.00025036,2]
[313834395,1707748283438,-1602.71,0.00025036,2]
[313834396,1707748283448,-1140.13,0.00025036,2]
[313834397,1707748283458,-2106.31,0.00025036,2]
[313834398,1707748283468,-1276.82,0.00025036,2]
[313834399,1707748283478,-11488.97,0.00025036,2]
[313834400,1707748283488,-779.37,0.00025036,2]
[313834401,1707748283498,-522.1,0.00025036,2]
[313834402,1707748283508,-500.0,0.00025036,2]
[313834403,1707748283519,-862.25,0.00025036,2]
[313834404,1707748283528,-954.69,0.00025036,2]
[313834405,1707748283538,-4038.41,0.00025036,2]
[313834406,1707748283548,-2125.47,0.00025036,2]
[313834407,1707748283558,-3098.18,0.00025036,2]
[313834408,1707748283567,-4848.26,0.00025036,2]
[313834409,1707748283576,-1169.49,0.00025036,2]
[313834410,1707748283586,-2525.28,0.00025036,2]
[313834411,1707748283596,-500.0,0.00025039,2]
[313834412,1707748283605,-500.0,0.00025039,2]
[313834413,1707748283614,-500.0,0.00025039,2]
[313834414,1707748283624,-500.0,0.00025039,2]
[313834415,1707748283634,-500.0,0.00025039,2]
[313834416,1707748283643,-660.1,0.00025039,2]
[313834417,1707748283652,-676.33,0.00025039,2]
[313834418,1707748283661,-500.0,0.00025039,2]
[313834419,1707748283671,-500.0,0.00025039,2]
[313834420,1707748283680,-500.0,0.00025039,2]
[313834421,1707748283689,-500.0,0.00025039,2]
[313834422,1707748283699,-500.0,0.00025039,2]
[313834423,1707748283709,-500.0,0.00025039,2]
[313834424,1707748283718,-500.0,0.00025039,7]
[313834425,1707748283727,-500.0,0.00025039,2]
[313834426,1707748283736,-500.0,0.00025039,2]
[313834427,1707748283746,-526.84,0.00025039,2]
[313834428,1707748283756,-500.0,0.00025039,2]
[313834429,1707748283766,-500.0,0.00025039,2]
[313834430,1707748283775,-529.5,0.00025039,2]
[313834431,1707748283785,-500.0,0.00025039,2]
[313834432,1707748283795,-652.95,0.00025039,2]
[313834433,1707748283805,-651.67,0.00025039,2]
[313834434,1707748283815,-567.71,0.00025039,2]
[313834435,1707748283824,-500.0,0.00025039,2]
[313834436,1707748283834,-784.11,0.00025039,2]
[313834437,1707748283843,-524.91,0.00025039,2]
[313834438,1707748283852,-607.01017192,0.00025039,2]
[313834439,1707748283862,-500.0,0.00025039,2]
[313834440,1707748283871,-872.77,0.00025039,2]
[313834441,1707748283881,-639.25,0.00025039,2]
[313834442,1707748283891,-500.0,0.00025039,2]
[313834443,1707748283902,-500.0,0.00025039,2]
[313834444,1707748283913,-500.0,0.00025039,2]
[313834445,1707748283923,-500.0,0.00025039,2]
[313834446,1707748283932,-1296.69,0.00025039,2]
[313834447,1707748283942,-476.074768,0.00025039,2]
[313834448,1707748283951,-500.0,0.00025039,2]
[313834449,1707748283961,-517.62,0.00025039,2]
[313834450,1707748283970,-4333.7,0.00025039,2]
[313834451,1707748283980,-1895.9,0.00025039,2]
[313834452,1707748283989,-923.15,0.00025039,2]
[313834453,1707748283999,-1121.1,0.00025039,2]
[313834454,1707748284009,-500.0,0.00025039,2]
[313834455,1707748284019,-500.0,0.00025039,2]
[313834456,1707748284030,-500.0,0.00025039,2]
[313834457,1707748284041,-4100.88,0.00025039,2]
[313834458,1707748284051,-791.85,0.00025039,2]
[313834459,1707748284063,-500.0,0.00025039,2]
[313834460,1707748284073,-1394.8,0.00025039,2]
[313834461,1707748284083,-575.24,0.00025039,2]
[313834462,1707748284093,-715.53,0.00025039,2]
[313834463,1707748284103,-637.77,0.00025039,2]
[313834464,1707748284113,-1763.67,0.00025039,2]
[313834465,1707748284122,-2032.84,0.00025039,2]
[313834466,1707748284131,-366.14241829,0.00025039,2]
[313834467,1707748284141,-686.28,0.00025039,2]
[313834468,1707748284150,-689.11,0.00025039,2]
[313834469,1707748284159,-1500.18,0.00025039,2]
[313834470,1707748284169,-4391.98,0.00025039,2]
[313834471,1707748284178,-637.5,0.00025039,2]
[313834472,1707748284188,-500.0,0.00025039,2]
[313834473,1707748284198,-1040.77,0.00025039,2]
[313834474,1707748284208,-500.0,0.00025039,2]
[313834475,1707748284218,-1065.07,0.00025039,2]
[313834476,1707748284229,-500.0,0.00025039,2]
[313834477,1707748284239,-596.16,0.00025039,2]
[313834478,1707748284248,-500.0,0.00025039,2]
[313834479,1707748284258,-706.62,0.00025039,2]
[313834480,1707748284269,-500.0,0.00025039,2]
[313834481,1707748284278,-4062.09,0.00025039,2]
[313834482,1707748284288,-1058.56,0.00025039,2]
[313834483,1707748284297,-721.91,0.00025039,2]
[313834484,1707748284311,-3863.5,0.00025039,2]
[313834485,1707748284321,-500.0,0.00025039,2]
[313834486,1707748284330,-559.05,0.00025039,2]
[313834487,1707748284341,-500.0,0.00025039,2]
[313834488,1707748284350,-500.0,0.00025039,2]
[313834489,1707748284362,-500.0,0.00025039,2]
[313834490,1707748284372,-5323.17,0.00025039,2]
[313834491,1707748284382,-500.0,0.00025039,2]
[313834492,1707748284392,-500.0,0.00025039,2]
[313834493,1707748284402,-1797.81,0.00025039,2]
[313834494,1707748284413,-500.0,0.00025039,2]
[313834495,1707748284425,-500.0,0.00025039,2]
[313834496,1707748284435,-1838.78,0.00025039,2]
[313834497,1707748284446,-683.21,0.00025039,2]
[313834498,1707748284457,-500.0,0.00025039,2]
[313834499,1707748284467,-508.34,0.00025039,2]
[313834500,1707748284478,-500.0,0.00025039,2]
[313834501,1707748284488,-945.99,0.00025039,2]
[313834502,1707748284499,-500.0,0.00025039,2]
[313834503,1707748284509,-874.97,0.00025039,2]
[313834504,1707748284520,-500.0,0.00025039,2]
[313834505,1707748284531,-150.0,0.00025039,2]
[313834506,1707748284541,-150.0,0.00025039,2]
[313834507,1707748284551,-2272.98,0.00025039,2]
[313834508,1707748284561,-1286.15,0.00025039,2]
[313834509,1707748284571,-500.0,0.00025039,2]
[313834510,1707748284581,-502.26,0.00025039,2]
[313834511,1707748284591,-1140.72,0.00025039,2]
[313834512,1707748284601,-639.88,0.0002504,2]
[313834513,1707748284611,-208.71,0.0002504,2]
[313834514,1707748284621,-500.0,0.0002504,2]
[313834515,1707748284631,-3000.0,0.0002504,2]
[313834516,1707748284641,-524.07,0.0002504,2]
[313834517,1707748284651,-220.22909601,0.0002504,2]
[313834518,1707748284661,-373.745885,0.0002504,2]
[313834519,1707748284672,-500.0,0.0002504,2]
[313834520,1707748284681,-500.0,0.0002504,2]
[313834521,1707748284691,-179.54,0.0002504,2]
[313834522,1707748284701,-859.17,0.0002504,2]
[313834523,1707748284711,-8642.09,0.0002504,2]
[313834524,1707748284721,-500.0,0.0002504,2]
[313834525,1707748284731,-500.0,0.0002504,2]
[313834526,1707748284741,-907.74,0.0002504,2]
[313834527,1707748284751,-659.8,0.0002504,2]
[313834528,1707748284762,-6204.93,0.0002504,2]
[313834529,1707748284772,-500.0,0.0002504,2]
[313834530,1707748284782,-500.0,0.0002504,2]
[313834531,1707748284792,-500.0,0.0002504,2]
[313834532,1707748284802,-1134.83,0.0002504,2]
[313834533,1707748284812,-1147.71,0.0002504,2]
[313834534,1707748284822,-500.0,0.0002504,2]
[313834535,1707748284832,-500.0,0.0002504,2]
[313834536,1707748284841,-2142.38,0.0002504,2]
[313834537,1707748284851,-1578.9,0.0002504,2]
[313834538,1707748284860,-500.0,0.0002504,2]
[313834539,1707748284871,-500.0,0.0002504,2]
[313834540,1707748284880,-628.61,0.0002504,2]
[313834541,1707748284890,-1527.65,0.0002504,2]
[313834542,1707748284901,-1715.49,0.0002504,2]
[313834543,1707748284910,-500.0,0.0002504,2]
[313834544,1707748284920,-1537.51,0.0002504,2]
[313834545,1707748284930,-500.0,0.0002504,2]
[313834546,1707748285159,-500.0,0.0002504,2]
[313834547,1707748285169,-1757.6,0.0002504,2]
[313834548,1707748285179,-2089.11,0.0002504,2]
[313834549,1707748285189,-1017.68,0.0002504,2]
[313834550,1707748285198,-1161.37,0.0002504,2]
[313834551,1707748285209,-590.03,0.0002504,2]
[313834552,1707748285219,-10286.15,0.0002504,2]
[313834553,1707748285228,-500.0,0.0002504,2]
[313834554,1707748285238,-1897.21,0.0002504,2]
[313834555,1707748285247,-500.0,0.0002504,2]
[313834556,1707748285256,-935.54,0.0002504,2]
[313834557,1707748285266,-500.0,0.0002504,2]
[313834558,1707748285276,-7934.79,0.0002504,2]
[313834559,1707748285286,-500.0,0.0002504,2]
[313834560,1707748285296,-500.0,0.0002504,2]
[313834561,1707748285309,-500.0,0.0002504,2]
[313834562,1707748285319,-500.0,0.0002504,2]
[313834563,1707748285328,-500.0,0.0002504,2]
[313834564,1707748285338,-500.0,0.0002504,2]
[313834565,1707748285348,-2190.55,0.0002504,2]
[313834566,1707748285359,-500.0,0.0002504,2]
[313834567,1707748285368,-1376.25,0.0002504,2]
[313834568,1707748285378,-500.0,0.0002504,2]
[313834569,1707748285388,-6405.5,0.0002504,2]
[313834570,1707748285398,-500.0,0.0002504,2]
[313834571,1707748285407,-294.46527946,0.0002504,2]
[313834572,1707748285417,-692.19,0.0002504,2]
[313834573,1707748285426,-4161.56,0.0002504,2]
[313834574,1707748285436,-562.21,0.0002504,2]
[313834575,1707748285445,-3000.0,0.0002505,2]
[313834576,1707748285455,-3000.0,0.0002506,2]
[313834577,1707748285465,-3000.0,0.0002507,2]
[313834578,1707748285474,-3000.0,0.0002508,2]
[313834579,1707748285484,-3000.0,0.0002509,2]
[313834580,1707748285493,-2608.04294306,0.00025099,2]
[313834581,1707748285503,-512.06274968,0.00025099,2]
[313834582,1707748285513,-200.0,0.00025099,2]
[313834583,1707748285523,-3000.0,0.000251,2]
[313834584,1707748285533,-3000.0,0.0002511,2]
[313834585,1707748285542,-166.25,0.00025112,2]
[313834586,1707748285552,-3000.0,0.0002512,2]
[313834587,1707748285561,-1262.54,0.00025121,2]
[313834588,1707748285572,-1207.47,0.00025121,2]
[313834589,1707748285581,-500.0,0.00025121,2]
[313834590,1707748285590,-500.0,0.00025121,2]
[313834591,1707748285599,-581.28,0.00025121,2]
[313834592,1707748285609,-500.0,0.00025121,2]
[313834593,1707748285618,-500.0,0.00025121,2]
[313834594,1707748285627,-500.0,0.00025121,2]
[313834595,1707748285638,-154.25,0.00025121,2]
[313834596,1707748285648,-500.0,0.00025121,2]
[313834597,1707748285658,-500.0,0.00025121,2]
[313834598,1707748285668,-385.33253395,0.00025121,2]
[313834599,1707748285677,-500.0,0.00025121,2]
[313834600,1707748285686,-500.0,0.00025121,2]
[313834601,1707748285695,-500.0,0.00025121,2]
[313834602,1707748285704,-662.95,0.00025121,2]
[313834603,1707748285714,-500.0,0.00025121,2]
[313834604,1707748285724,-500.0,0.00025121,2]
[313834605,1707748285732,-500.0,0.00025121,2]
[313834606,1707748285742,-500.0,0.00025121,2]
[313834607,1707748285752,-500.0,0.00025121,2]
[313834608,1707748285762,-500.0,0.00025121,2]
[313834609,1707748285772,-500.0,0.00025121,2]
[313834610,1707748285783,-500.0,0.00025121,2]
[313834611,1707748285792,-785.31,0.00025121,2]
[313834612,1707748285802,-500.0,0.00025121,2]
[313834613,1707748285814,-500.0,0.00025121,2]
[313834614,1707748285823,-1057.6,0.00025121,2]
[313834615,1707748285832,-387.47762717,0.00025121,2]
[313834616,1707748285842,-623.82,0.00025121,2]
[313834617,1707748285851,-500.0,0.00025121,2]
[313834618,1707748285861,-500.0,0.00025121,2]
[313834619,1707748285870,-500.0,0.00025121,2]
[313834620,1707748285880,-681.61,0.00025121,2]
[313834621,1707748285889,-500.0,0.00025121,2]
[313834622,1707748285899,-1004.0,0.00025121,2]
[313834623,1707748285908,-602.71447145,0.00025121,2]
[313834624,1707748285918,-500.0,0.00025121,2]
[313834625,1707748285927,-500.0,0.00025121,2]
[313834626,1707748285937,-500.0,0.00025121,2]
[313834627,1707748285946,-281.37963539,0.00025128,2]
[313834628,1707748285955,-3000.0,0.0002513,2]
[313834629,1707748285965,-3000.0,0.0002514,2]
[313834630,1707748285974,-3000.0,0.0002515,2]
[313834631,1707748285984,-3000.0,0.0002516,2]
[313834632,1707748285993,-5812.6876084,0.00025168,2]
[313834633,1707748286003,-3000.0,0.0002517,2]
[313834634,1707748286012,-3362.408397,0.0002518,2]
[313834635,1707748286022,-500.0,0.00025188,2]
[313834636,1707748286033,-500.0,0.00025212,2]
[313834637,1707748286042,-500.0,0.00025212,2]
[313834638,1707748286052,-500.0,0.00025212,2]
[313834639,1707748286061,-1366.1,0.00025212,2]
[313834640,1707748286071,-500.0,0.00025212,2]
[313834641,1707748286081,-2110.37,0.00025228,2]
[313834642,1707748286091,-6142.49,0.00025228,2]
[313834643,1707748286100,-500.0,0.00025228,2]
[313834644,1707748286110,-676.37,0.00025228,2]
[313834645,1707748286120,-1791.31,0.00025228,2]
[313834646,1707748286129,-564.38,0.00025228,2]
[313834647,1707748286139,-2125.32,0.00025228,2]
[313834648,1707748286149,-500.0,0.00025228,2]
[313834649,1707748286159,-746.12,0.00025228,2]
[313834650,1707748286168,-6506.4,0.00025228,2]
[313834651,1707748286178,-746.22,0.00025228,2]
[313834652,1707748286188,-500.0,0.00025228,2]
[313834653,1707748286197,-500.0,0.00025228,2]
[313834654,1707748286207,-500.0,0.00025228,2]
[313834655,1707748286217,-500.0,0.00025228,2]
[313834656,1707748286227,-1926.94,0.00025228,2]
[313834657,1707748286236,-500.0,0.00025228,2]
[313834658,1707748286246,-1829.63,0.00025228,2]
[313834659,1707748286256,-504.23,0.00025228,2]
[313834660,1707748286266,-2230.81,0.00025228,2]
[313834661,1707748286276,-500.0,0.00025228,2]
[313834662,1707748286286,-500.0,0.00025228,2]
[313834663,1707748286296,-5597.11,0.00025228,2]
[313834664,1707748286307,-2899.6,0.00025228,2]
[313834665,1707748286317,-500.0,0.00025228,2]
[313834666,1707748286327,-828.89,0.00025228,2]
[313834667,1707748286338,-42470.57985931,0.0002523,2]
[313834668,1707748286347,-2611.65,0.0002531,2]
[313834669,1707748286357,-1871.51,0.0002531,2]
[313834670,1707748286366,-15228.44,0.0002531,2]
[313834671,1707748286376,-500.0,0.0002531,2]
[313834672,1707748286387,-1123.04,0.0002531,2]
[313834673,1707748286397,-669.38,0.0002531,2]
[313834674,1707748286407,-500.0,0.0002531,2]
[313834675,1707748286417,-7454.03,0.0002531,2]
[313834676,1707748286427,-656.99,0.0002531,2]
[313834677,1707748286437,-1132.61,0.0002531,2]
[313834678,1707748286447,-500.0,0.0002531,2]
[313834679,1707748286457,-607.87,0.0002531,2]
[313834680,1707748286467,-2975.67,0.0002531,2]
[313834681,1707748286477,-1380.57,0.0002531,2]
[313834682,1707748286487,-1785.04,0.0002531,2]
[313834683,1707748286497,-500.0,0.0002531,2]
[313834684,1707748286507,-1602.71,0.0002531,2]
[313834685,1707748286518,-1140.13,0.0002531,2]
[313834686,1707748286527,-2106.31,0.0002531,2]
[313834687,1707748286537,-1276.82,0.0002531,2]
[313834688,1707748286547,-11488.97,0.0002531,2]
[313834689,1707748286558,-779.37,0.0002531,2]
[313834690,1707748286568,-522.1,0.0002531,2]
[313834691,1707748286578,-500.0,0.0002531,2]
[313834692,1707748286587,-862.25,0.0002531,2]
[313834693,1707748286597,-954.69,0.0002531,2]
[313834694,1707748286608,-4038.41,0.0002531,2]
[313834695,1707748286618,-2125.47,0.0002531,2]
[313834696,1707748286628,-3098.18,0.0002531,2]
[313834697,1707748286638,-4848.26,0.0002531,2]
[313834698,1707748286648,-1169.49,0.0002531,2]
[313834699,1707748286658,-2525.28,0.0002531,2]
[313834700,1707748286667,-500.0,0.00025313,2]
[313834701,1707748286677,-500.0,0.00025313,2]
[313834702,1707748286687,-500.0,0.00025313,2]
[313834703,1707748286696,-500.0,0.00025313,2]
[313834704,1707748286705,-500.0,0.00025313,2]
[313834705,1707748286715,-660.1,0.00025313,2]
[313834706,1707748286724,-676.33,0.00025313,2]